bitfinex-derivatives/quotes_SOLF0:USTF0_20241218
["timestamp","ask_amount","ask_price","bid_price","bid_amount"]
[1734502758326,5.4094,215.9,215.87,5.77943588]
[1734502759434,2.3161,215.89,215.87,5.77943588]
[1734502759832,2.3163,215.88,215.85,5.77943588]
[1734502760031,5.4094,215.9,215.82,2.3167]
[1734502760436,2.3164,215.87,215.81,11.48823891]
[1734502761138,2.3161,215.89,215.84,2.3166]
[1734502761345,2.42,215.91,215.84,9.06823891]
[1734502762350,4.7359,215.91,215.84,9.06823891]
[1734502762842,4.7359,215.91,215.86,2.3164]
[1734502763643,2.316,215.9,215.85,2.3165]
[1734502765241,2.3161,215.89,215.85,2.3165]
[1734502765436,2.3161,215.89,215.84,11.38483891]
[1734502766744,2.42,215.91,215.84,9.06823891]
[1734502766947,2.42,215.91,215.81,11.48823891]
[1734502767135,2.42,215.91,215.81,9.06823891]
[1734502767951,2.42,215.91,215.79,7.92753115]
[1734502768241,1.4852,215.9,215.79,7.92753115]
[1734502768441,2.3166,215.84,215.79,10.24453115]
[1734502769942,2.3167,215.83,215.79,10.24453115]
[1734502770744,2.3168,215.82,215.78,11.38543891]
[1734502771141,2.3168,215.82,215.78,16.94357951]
[1734502771852,2.3167,215.83,215.79,2.3171]
[1734502776946,2.42,215.87,215.78,14.62637951]
[1734502777143,5.6071,215.89,215.81,9.06823891]
[1734502778454,2.3165,215.86,215.82,2.3168]
[1734502779949,2.3165,215.86,215.85,5.80334765]
[1734502781147,86.91126757,215.92,215.85,5.80334765]
[1734502781354,86.91126757,215.92,215.88,5.80334765]
[1734502782247,2.316,215.9,215.88,5.80334765]
[1734502782953,92.71461522,215.92,215.84,5.80334765]
[1734502783350,5.80334765,215.88,215.8,4.74110489]
[1734502783557,5.80334765,215.86,215.8,4.74110489]
[1734502783756,8.20334765,215.86,215.8,4.74110489]
[1734502783945,2.3169,215.81,215.8,4.74110489]
[1734502784650,2.3169,215.81,215.8,10.54445254]
[1734502784953,2.3168,215.82,215.8,10.54445254]
[1734502786454,2.4,215.86,215.8,10.54445254]
[1734502786756,2.4,215.86,215.8,5.80334765]
[1734502787460,2.3167,215.83,215.8,8.12034765]
[1734502788358,2.3167,215.83,215.8,5.80334765]
[1734502789047,2.4,215.86,215.8,5.80334765]
[1734502789253,2.4,215.86,215.8,8.12024765]
[1734502790051,2.4,215.88,215.82,5.80334765]
[1734502790452,2.4,215.88,215.75,5.47283637]
[1734502790453,2.4,215.88,215.84,5.80334765]
[1734502790757,2.4,215.88,215.86,5.80334765]
[1734502791254,2.3164,215.86,215.82,2.3168]
[1734502791459,2.3164,215.86,215.83,5.80334765]
[1734502793159,4.7163,215.88,215.85,5.80334765]
[1734502794561,2.3163,215.87,215.85,5.80334765]
[1734502797063,2.3163,215.87,215.83,8.12004765]
[1734502800569,2.3163,215.87,215.83,5.80334765]
[1734502800965,4.7162,215.88,215.85,5.80334765]
[1734502801869,2.4,215.88,215.85,5.80334765]
[1734502802069,2.3164,215.87,215.85,5.80334765]
[1734502803069,4.7162,215.88,215.85,5.80334765]
[1734502804368,2.3163,215.87,215.83,2.3166]
[1734502804562,2.3163,215.87,215.84,5.80334765]
[1734502805673,5.80334765,215.86,215.74,0.17805]
[1734502805871,5.80334765,215.84,215.77,5.80334765]
[1734502806367,2.3171,215.8,215.77,5.80334765]
[1734502806773,2.3171,215.79,215.77,5.80334765]
[1734502807168,2.4,215.85,215.77,5.80334765]
[1734502807368,8.20334765,215.9,215.82,5.80334765]
[1734502807769,2.3165,215.86,215.77,2.4]
[1734502807972,5.80334765,215.88,215.81,5.80334765]
[1734502808174,5.80334765,215.88,215.83,5.80334765]
[1734502808771,2.3165,215.86,215.83,5.80334765]
[1734502808977,5.80334765,215.88,215.83,5.80334765]
[1734502809879,5.80334765,215.88,215.8,5.80334765]
[1734502810174,5.80334765,215.89,215.82,5.80334765]
[1734502810382,5.80334765,215.89,215.77,2.4]
[1734502810383,2.4,215.9,215.84,5.80334765]
[1734502811579,2.3163,215.87,215.84,8.11984765]
[1734502811886,2.4,215.9,215.84,5.80334765]
[1734502812086,5.80334765,215.89,215.82,5.80334765]
[1734502812483,5.80334765,215.87,215.8,5.80334765]
[1734502813884,2.3168,215.83,215.8,5.80334765]
[1734502814589,2.3168,215.83,215.81,5.80334765]
[1734502814990,4.4601,215.91,215.76,2.4]
[1734502814991,8.20334765,215.85,215.76,2.4]
[1734502815179,8.20334765,215.85,215.77,5.80334765]
[1734502815384,2.3171,215.8,215.77,5.80334765]
[1734502815585,5.80334765,215.81,215.74,0.17805]
[1734502815888,2.4,215.8,215.74,5.98139765]
[1734502816085,2.3174,215.77,215.74,5.98139765]
[1734502817680,2.4,215.8,215.76,5.80334765]
[1734502817991,2.4,215.88,215.78,5.80334765]
[1734502818188,2.4,215.88,215.81,5.80334765]
[1734502818891,2.3165,215.85,215.81,5.80334765]
[1734502822081,4.4601,215.91,215.81,5.80334765]
[1734502822283,2.3163,215.88,215.83,8.12004765]
[1734502822484,2.3163,215.88,215.85,5.80334765]
[1734502822790,2.3163,215.87,215.83,5.80334765]
[1734502823993,2.3163,215.87,215.83,8.12004765]
[1734502826397,12.66344765,215.91,215.83,5.80334765]
[1734502826997,5.80334765,215.89,215.83,5.80334765]
[1734502827390,6.8601,215.91,215.81,5.80334765]
[1734502827391,5.80334765,215.87,215.81,5.80334765]
[1734502828294,2.3167,215.84,215.81,5.80334765]
[1734502828590,5.80334765,215.87,215.8,8.12034765]
[1734502828798,5.80334765,215.87,215.8,2.317]
[1734502828992,2.3165,215.85,215.8,8.12034765]
[1734502829294,5.80334765,215.87,215.8,8.12034765]
[1734502830299,5.80334765,215.87,215.8,5.80334765]
[1734502831196,5.80334765,215.85,215.76,2.4]
[1734502831494,5.80334765,215.85,215.78,5.80334765]
[1734502832289,5.80334765,215.85,215.78,8.12054765]
[1734502833093,2.3167,215.83,215.78,8.12054765]
[1734502833495,2.4,215.86,215.8,5.80334765]
[1734502833694,2.3166,215.84,215.8,8.12024765]
[1734502834097,2.3166,215.85,215.8,8.12024765]
[1734502834297,2.4,215.86,215.8,8.12024765]
[1734502834496,2.4,215.86,215.8,5.80334765]
[1734502834900,2.3166,215.84,215.8,8.12034765]
[1734502837100,2.3162,215.88,215.82,5.80334765]
[1734502837403,2.3162,215.88,215.84,5.80334765]
[1734502838301,12.66344765,215.91,215.84,5.80334765]
[1734502838498,2.3163,215.87,215.84,8.11984765]
[1734502838793,2.3163,215.87,215.8,2.4]
[1734502838794,5.80334765,215.87,215.82,5.80334765]
[1734502838994,5.80334765,215.89,215.82,8.12014765]
[1734502839199,6.8601,215.91,215.82,5.80334765]
[1734502839399,5.80334765,215.9,215.84,5.80334765]
[1734502839999,2.3163,215.87,215.84,8.11994765]
[1734502840893,4.4601,215.91,215.86,5.80334765]
[1734502841099,2.9398,215.91,215.88,5.80334765]
[1734502841294,5.2557,215.91,215.86,5.80334765]
[1734502842002,5.2557,215.91,215.87,2.3162]
[1734502842700,2.3159,215.9,215.87,2.3161]
[1734502845701,2.3159,215.9,215.86,8.11954765]
[1734502846107,2.3159,215.9,215.86,2.3162]
[1734502846298,2.3159,215.9,215.86,8.11954765]
[1734502847203,2.3159,215.9,215.86,13.63521029]
[1734502847706,5.80334765,215.93,215.86,11.31901029]
[1734502848003,2.3155,215.93,215.88,8.11924765]
[1734502848208,8.5213967,215.97,215.92,5.80334765]
[1734502848400,5.4134,215.97,215.92,8.11884765]
[1734502849703,5.4134,215.97,215.94,5.80334765]
[1734502850610,2.4,215.99,215.94,5.80334765]
[1734502850810,1.476,216.07,215.96,5.80334765]
[1734502850811,5.80334765,216.03,215.96,5.80334765]
[1734502851012,8.20334765,216.03,215.96,5.80334765]
[1734502851210,2.3148,215.99,215.96,5.80334765]
[1734502852612,2.3147,216.01,215.96,5.80334765]
[1734502852809,2.3147,216.01,215.92,2.4]
[1734502852810,86.86154916,216.05,216.0,5.80334765]
[1734502854213,89.17574916,216.05,216.0,8.11804765]
[1734502855317,89.17574916,216.05,216.0,5.80334765]
[1734502855511,89.17574916,216.05,216.01,2.3146]
[1734502855709,2.314,216.07,216.02,5.80334765]
[1734502855911,186.86504915,216.21,215.98,2.4]
[1734502855912,8.80434765,216.12,216.05,2.3141]
[1734502856108,8.80434765,216.12,216.04,5.80334765]
[1734502856312,2.3137,216.09,216.04,5.80334765]
[1734502857513,2.3137,216.09,216.04,8.11754765]
[1734502857712,2.3138,216.08,216.04,2.3142]
[1734502857911,5.80334765,216.1,216.01,5.80334765]
[1734502858112,5.80334765,216.08,216.01,5.80334765]
[1734502858314,2.4,216.07,215.99,5.80334765]
[1734502858514,2.3144,216.03,215.99,5.80334765]
[1734502859214,2.3144,216.03,216.01,5.80334765]
[1734502859409,2.4,216.07,216.01,5.80334765]
[1734502859617,2.3143,216.04,216.01,5.80334765]
[1734502860814,5.80334765,216.04,215.82,4.6333]
[1734502861014,5.80334765,216.04,215.96,5.80334765]
[1734502861015,5.80334765,216.02,215.96,5.80334765]
[1734502861415,2.3148,215.99,215.96,5.80334765]
[1734502863619,5.80334765,216.0,215.94,5.68574763]
[1734502863823,2.4,215.99,215.94,5.68574763]
[1734502864114,2.3152,215.95,215.94,5.68574763]
[1734502864321,2.3152,215.95,215.92,5.80334765]
[1734502864517,2.4,215.99,215.89,2.4]
[1734502864716,2.3154,215.93,215.91,5.80334765]
[1734502865312,2.3155,215.92,215.91,5.80334765]
[1734502865512,3.9595,215.99,215.89,2.4]
[1734502865513,5.80334765,215.96,215.89,5.80334765]
[1734502865713,3.9595,215.99,215.87,5.80334765]
[1734502865714,5.80334765,215.94,215.87,5.80334765]
[1734502866020,2.3159,215.89,215.87,5.80334765]
[1734502866222,8.20334765,215.94,215.87,5.80334765]
[1734502866612,2.316,215.89,215.87,5.80334765]
[1734502870021,2.316,215.89,215.85,7.76927877]
[1734502870224,5.80334765,215.92,215.83,3.24305523]
[1734502870422,5.80334765,215.92,215.85,5.80334765]
[1734502871426,2.316,215.88,215.85,5.80334765]
[1734502871726,2.316,215.88,215.87,5.80334765]
[1734502873227,2.316,215.88,215.83,5.57182459]
[1734502873427,2.316,215.88,215.86,5.80334765]
[1734502873922,2.3157,215.91,215.86,8.11954765]
[1734502874119,3.112,215.93,215.89,5.80334765]
[1734502874323,3.112,215.93,215.91,5.80334765]
[1734502874521,3.112,215.93,215.89,5.80334765]
[1734502875031,3.112,215.93,215.91,5.80334765]
[1734502875332,2.4,215.98,215.91,5.80334765]
[1734502875528,2.315,215.98,215.95,5.80334765]
[1734502875727,1.5595,215.99,215.95,5.80334765]
[1734502876126,2.315,215.97,215.95,5.80334765]
[1734502876333,1.5595,215.99,215.95,5.80334765]
[1734502876531,2.3148,215.99,215.95,5.80334765]
[1734502876933,2.4,216.03,215.97,5.80334765]
[1734502877132,2.4,216.03,215.91,2.4]
[1734502877133,2.3144,216.02,215.99,5.80334765]
[1734502877527,1.4864,216.07,216.01,5.80334765]
[1734502877727,1.4864,216.07,215.97,2.4]
[1734502877932,1.4864,216.07,216.02,5.80334765]
[1734502879437,2.3143,216.04,216.02,5.80334765]
[1734502879633,1.4864,216.07,216.02,5.80334765]
[1734502879837,1.4864,216.07,216.04,5.80334765]
[1734502880142,2.3139,216.07,216.03,2.3143]
[1734502882033,5.4101,216.11,215.87,4.6321]
[1734502882239,5.4101,216.11,215.97,9.05111238]
[1734502882639,5.4101,216.11,215.98,2.3148]
[1734502883235,2.3146,216.01,215.97,9.05111238]
[1734502884544,2.4,216.06,215.94,9.05111238]
[1734502884745,2.4,216.06,215.94,11.45111238]
[1734502885234,2.4,216.06,215.95,2.3152]
[1734502885434,2.4,216.06,215.94,11.45111238]
[1734502886341,2.3147,216.0,215.96,2.3151]
[1734502886743,2.4,216.06,215.94,2.4]
[1734502887042,2.4,216.06,215.95,5.44728069]
[1734502887245,2.4,216.06,215.95,7.76248069]
[1734502887444,2.4,216.06,215.95,5.44728069]
[1734502888047,2.3148,216.0,215.96,2.3151]
[1734502888342,2.4,216.06,215.95,5.44728069]
[1734502888739,2.3149,215.99,215.94,11.36641238]
[1734502889246,2.3149,215.99,215.94,14.59620182]
[1734502889640,2.4,216.05,215.94,14.59620182]
[1734502889945,2.3146,216.01,215.96,2.315]
[1734502890446,2.3145,216.02,215.97,2.315]
[1734502890644,2.4,216.05,215.97,9.05111238]
[1734502890844,2.4,216.05,215.97,11.45111238]
[1734502891039,1.597,216.08,215.97,11.45111238]
[1734502891239,1.597,216.08,216.0,9.05111238]
[1734502892543,2.3139,216.07,216.0,9.05111238]
[1734502892943,2.3139,216.07,216.02,2.3143]
[1734502893152,3.0101,216.11,216.03,9.05111238]
[1734502894146,3.0101,216.11,216.06,9.05111238]
[1734502894452,2.3135,216.11,216.06,11.36501238]
[1734502895548,2.9844,216.16,216.09,9.05111238]
[1734502897450,2.3131,216.15,216.11,2.3134]
[1734502897643,2.3131,216.15,216.09,9.05111238]
[1734502897946,2.9844,216.16,216.1,2.3136]
[1734502898149,2.9844,216.16,216.09,9.05111238]
[1734502898953,2.4,216.15,216.06,9.05111238]
[1734502899948,2.3136,216.11,216.06,11.36511238]
[1734502901558,2.9844,216.16,215.9,4.6313]
[1734502901559,2.4,216.1,215.98,9.05111238]
[1734502901858,9.05111238,216.12,215.98,9.05111238]
[1734502901859,2.3144,216.02,215.98,9.05111238]
[1734502904657,2.3146,216.01,215.98,9.05111238]
[1734502906955,2.3145,216.02,215.98,9.05111238]
[1734502909251,2.9855,216.07,215.98,9.05111238]
[1734502909456,2.9855,216.07,216.01,9.05111238]
[1734502909652,2.4,216.09,216.01,9.05111238]
[1734502910052,2.3141,216.06,216.01,11.36561238]
[1734502911357,2.4,216.1,215.93,9.05111238]
[1734502911559,2.4,216.1,215.98,9.05111238]
[1734502912155,10.54491238,216.09,215.94,9.05111238]
[1734502913054,2.3149,215.99,215.94,11.36641238]
[1734502913353,2.4,216.01,215.94,11.36641238]
[1734502913950,2.4,216.06,215.97,9.05111238]
[1734502914760,2.3143,216.03,215.99,2.3147]
[1734502915753,2.3143,216.03,215.97,9.05111238]
[1734502915963,2.3144,216.02,215.98,2.3149]
[1734502918457,2.4,216.06,215.97,9.05111238]
[1734502918657,2.3148,215.99,215.97,9.05111238]
[1734502918855,2.3148,215.99,215.95,5.59818451]
[1734502919061,2.315,215.98,215.95,5.59818451]
[1734502919459,3.0408,216.05,215.95,5.59818451]
[1734502919759,2.3148,215.99,215.95,7.91338451]
[1734502920160,2.4,216.04,215.95,5.59818451]
[1734502920363,2.4,216.04,215.94,9.05111238]
[1734502920865,2.3151,215.97,215.94,9.05111238]
[1734502922865,2.3151,215.97,215.94,14.50445553]
[1734502924554,2.4,216.04,215.94,9.05111238]
[1734502924762,2.3152,215.95,215.91,11.36671238]
[1734502927062,2.3152,215.95,215.92,5.68845244]
[1734502927867,2.4,215.99,215.91,9.05111238]
[1734502928062,2.4,215.99,215.9,63.45144841]
[1734502928261,2.4,215.99,215.88,9.05111238]
[1734502928466,1.5793,215.98,215.88,9.05111238]
[1734502929058,1.5793,215.98,215.91,9.05111238]
[1734502929263,2.315,215.97,215.94,9.05111238]
[1734502929665,1.4513,216.04,215.94,9.05111238]
[1734502929970,2.3149,215.99,215.94,11.36631238]
[1734502930463,2.4,216.03,215.97,9.05111238]
[1734502931166,2.3145,216.02,215.97,9.05111238]
[1734502931364,1.4513,216.04,215.97,9.05111238]
[1734502931572,3.0408,216.05,215.97,9.05111238]
[1734502932369,3.0408,216.05,216.0,9.05111238]
[1734502932959,5.355,216.05,216.0,11.36571238]
[1734502933164,3.0408,216.05,216.0,11.36571238]
[1734502934465,2.3142,216.04,216.0,11.36571238]
[1734502935370,3.0408,216.05,215.97,9.05111238]
[1734502935571,3.0408,216.05,215.94,9.05111238]
[1734502936166,3.0408,216.05,215.97,9.05111238]
[1734502937065,2.3146,216.01,215.97,9.05111238]
[1734502937958,2.3146,216.01,216.0,5.79501947]
[1734502938368,3.0408,216.05,216.0,5.79501947]
[1734502938769,3.0408,216.05,216.02,5.79501947]
[1734502938971,3.8513,216.09,216.04,5.79501947]
[1734502939171,2.4,216.11,216.06,5.79501947]
[1734502940073,2.3138,216.09,216.06,5.79501947]
[1734502940864,5.3328,216.12,216.06,5.79501947]
[1734502941068,5.79501947,216.11,216.04,5.79501947]
[1734502941476,2.314,216.06,216.04,5.79501947]
[1734502942073,2.314,216.06,216.02,2.3144]
[1734502942377,2.3139,216.08,216.03,2.3143]
[1734502942672,2.3139,216.08,216.01,14.46831719]
[1734502943473,2.3139,216.08,216.04,2.3142]
[1734502944577,2.3137,216.09,216.05,2.3141]
[1734502945674,5.3328,216.12,216.01,5.41691744]
[1734502945675,2.9328,216.12,216.01,5.41691744]
[1734502946173,2.3142,216.04,216.01,5.41691744]
[1734502948278,2.3142,216.04,215.98,9.05139975]
[1734502948879,2.3143,216.03,215.99,2.3147]
[1734502949374,2.3143,216.03,215.98,9.05139975]
[1734502949570,2.3143,216.03,215.98,11.36619975]
[1734502949976,2.3143,216.03,215.98,9.05139975]
[1734502950181,2.3143,216.03,215.99,2.3148]
[1734502950376,2.3143,216.03,216.0,5.66493794]
[1734502951482,2.3142,216.05,216.0,5.66493794]
[1734502951783,2.4,216.08,216.0,5.66493794]
[1734502952980,2.3141,216.06,216.01,2.3145]
[1734502953175,2.3141,216.06,216.0,5.66493794]
[1734502953379,2.4,216.08,216.01,9.05139975]
[1734502954586,2.9328,216.12,216.03,2.3143]
[1734502954880,2.4,216.11,216.03,2.3143]
[1734502955191,2.4,216.11,216.04,2.3142]
[1734502955882,2.9328,216.12,216.04,9.05139975]
[1734502957687,2.3135,216.11,216.04,9.05139975]
[1734502958279,2.3135,216.11,216.06,2.3139]
[1734502959079,2.3134,216.12,216.07,2.3139]
[1734502959690,2.3135,216.11,216.07,2.3139]
[1734502961495,2.4,216.14,216.09,2.3137]
[1734502961496,2.3132,216.14,216.09,2.3137]
[1734502961684,85.23916927,216.18,216.1,9.05139975]
[1734502962084,85.23916927,216.18,216.16,5.78642787]
[1734502962391,3.0173,216.19,216.16,5.78642787]
[1734502962896,5.33,216.19,216.16,5.78642787]
[1734502963992,5.33,216.19,216.14,2.3131]
[1734502964289,2.3127,216.18,216.13,2.3132]
[1734502969789,2.3127,216.18,216.13,7.827569]
[1734502970893,2.3128,216.17,216.13,7.827569]
[1734502973294,2.3127,216.18,216.13,7.827569]
[1734502974795,5.3299,216.19,216.14,2.3131]
[1734502974995,2.4,216.21,216.13,5.514369]
[1734502975500,2.3129,216.17,216.13,5.514369]
[1734502976200,2.3128,216.18,216.13,7.827569]
[1734502976505,2.4,216.21,216.13,14.55616785]
[1734502976689,2.4,216.21,216.15,2.313]
[1734502977094,3.0654,216.24,216.13,14.55616785]
[1734502977394,3.0654,216.24,216.16,9.04179885]
[1734502977900,2.3122,216.23,216.18,2.3126]
[1734502978101,86.78189836,216.25,216.19,9.04179885]
[1734502979298,86.78189836,216.25,216.21,2.3123]
[1734502979703,86.78189836,216.25,216.19,9.04179885]
[1734502979905,86.78189836,216.25,216.22,2.3123]
[1734502980294,2.7109,216.29,216.25,2.312]
[1734502980295,2.6225,216.29,216.25,2.312]
[1734502980703,0.3109,216.29,216.25,2.312]
[1734502981103,0.3109,216.29,216.25,9.04179885]
[1734502981507,0.3109,216.29,216.28,9.04179885]
[1734502981805,86.73845474,216.36,216.31,2.3113]
[1734502982004,86.73845474,216.36,216.28,9.04179885]
[1734502982599,89.04925474,216.36,216.31,2.3113]
[1734502985207,2.3111,216.34,216.28,11.35349885]
[1734502986108,2.3111,216.34,216.3,5.77914234]
[1734502988609,2.3111,216.34,216.32,5.77914234]
[1734502988810,89.04935474,216.36,216.32,5.77914234]
[1734502989212,89.04935474,216.36,216.34,5.77914234]
[1734502989616,2.3109,216.35,216.34,5.77914234]
[1734502991014,4.6366,216.42,216.34,5.77914234]
[1734502991206,7.0166,216.42,216.37,5.77914234]
[1734502991720,2.3104,216.4,216.37,5.77914234]
[1734503002216,3.168,216.42,216.39,5.77914234]
[1734503002418,1.4404,216.49,216.41,5.77914234]
[1734503002620,1.4404,216.49,216.43,5.77914234]
[1734503002818,2.3095,216.48,216.43,8.08914234]
[1734503003220,1.4404,216.49,216.43,8.08914234]
[1734503004523,2.3097,216.47,216.43,8.08914234]
[1734503004918,1.4404,216.49,216.43,5.77914234]
[1734503005821,1.4404,216.49,216.47,5.77914234]
[1734503006424,1.4404,216.49,216.41,2.38]
[1734503006618,1.4404,216.49,216.44,5.77914234]
[1734503007518,2.3097,216.47,216.44,5.77914234]
[1734503009120,2.9533,216.5,216.44,5.77914234]
[1734503009322,2.3094,216.49,216.46,5.77914234]
[1734503011324,5.2626,216.5,216.48,5.77914234]
[1734503011527,2.9533,216.5,216.48,5.77914234]
[1734503011730,2.9533,216.5,216.46,5.77914234]
[1734503012320,2.9533,216.5,216.44,5.77914234]
[1734503013229,5.77914234,216.47,216.35,5.67463362]
[1734503013431,2.38,216.46,216.4,5.77914234]
[1734503013620,5.77914234,216.45,216.38,5.77914234]
[1734503013825,3.8203,216.46,216.4,5.77914234]
[1734503015436,2.3103,216.41,216.4,5.77914234]
[1734503017737,1.4403,216.46,216.4,5.77914234]
[1734503018035,1.4403,216.46,216.35,5.67463362]
[1734503018237,2.3101,216.43,216.41,5.77914234]
[1734503019742,3.8203,216.46,216.41,5.77914234]
[1734503019934,2.38,216.46,216.43,5.77914234]
[1734503020337,2.3098,216.46,216.45,5.77914234]
[1734503022145,5.3333,216.5,216.45,5.77914234]
[1734503022337,2.9533,216.5,216.48,5.77914234]
[1734503023544,2.3094,216.49,216.48,5.77914234]
[1734503024539,2.3097,216.47,216.43,2.31]
[1734503024738,2.9533,216.5,216.45,5.77914234]
[1734503025337,2.3096,216.47,216.45,5.77914234]
[1734503025546,2.9533,216.5,216.47,5.77914234]
[1734503025736,2.3095,216.49,216.47,5.77914234]
[1734503026645,2.9533,216.5,216.45,5.77914234]
[1734503027645,2.9533,216.5,216.42,2.3101]
[1734503027837,2.9533,216.5,216.38,2.38]
[1734503028144,2.9533,216.5,216.43,5.77914234]
[1734503028542,2.3099,216.45,216.43,5.77914234]
[1734503029247,2.38,216.48,216.43,5.77914234]
[1734503029550,5.3333,216.5,216.45,5.77914234]
[1734503030245,2.3096,216.48,216.45,5.77914234]
[1734503030840,5.3333,216.5,216.38,2.38]
[1734503030841,5.3333,216.5,216.47,5.77914234]
[1734503031042,5.2626,216.5,216.47,5.77914234]
[1734503032946,2.3094,216.49,216.47,5.77914234]
[1734503036547,2.9533,216.5,216.47,5.77914234]
[1734503036751,2.3094,216.49,216.47,5.77914234]
[1734503040953,2.9533,216.5,216.43,2.31]
[1734503040954,2.3097,216.47,216.43,2.31]
[1734503041152,2.9533,216.5,216.41,5.64232901]
[1734503041351,2.9533,216.5,216.42,5.77914234]
[1734503041555,2.31,216.44,216.42,5.77914234]
[1734503045661,2.3101,216.43,216.42,5.77914234]
[1734503046058,2.38,216.48,216.42,5.77914234]
[1734503046953,2.31,216.44,216.42,5.77914234]
[1734503047958,2.3097,216.47,216.42,5.77914234]
[1734503048154,2.3097,216.47,216.46,5.77914234]
[1734503049559,2.9533,216.5,216.44,5.77914234]
[1734503050960,8.73244234,216.5,216.44,5.77914234]
[1734503051159,5.77914234,216.48,216.4,5.49499007]
[1734503051362,5.77914234,216.48,216.41,5.77914234]
[1734503051562,2.3101,216.44,216.41,5.77914234]
[1734503051958,2.38,216.47,216.41,5.77914234]
[1734503054564,2.3101,216.43,216.41,5.77914234]
[1734503055262,189.72524768,216.52,216.41,5.77914234]
[1734503055263,5.77914234,216.52,216.41,5.77914234]
[1734503055466,11.19204234,216.52,216.45,5.77914234]
[1734503055869,2.3097,216.47,216.45,5.77914234]
[1734503058167,8.81204234,216.52,216.45,5.77914234]
[1734503058367,2.38,216.51,216.45,8.08894234]
[1734503059071,5.65149484,216.56,216.4,2.38]
[1734503059262,0.50948,216.57,216.52,5.77914234]
[1734503059768,2.88948,216.57,216.5,5.77914234]
[1734503060168,2.3088,216.55,216.5,8.08844234]
[1734503064973,2.3089,216.54,216.5,5.77914234]
[1734503067070,5.77914234,216.54,216.48,5.77914234]
[1734503067872,2.3093,216.51,216.48,5.77914234]
[1734503069476,2.38,216.51,216.39,5.68470674]
[1734503069775,2.38,216.51,216.44,5.77914234]
[1734503070168,8.15914234,216.51,216.44,5.77914234]
[1734503070571,2.3097,216.47,216.44,5.77914234]
[1734503070772,8.15914234,216.51,216.44,5.77914234]
[1734503071474,2.3096,216.48,216.44,5.77914234]
[1734503073874,2.3096,216.48,216.46,5.77914234]
[1734503074780,2.38,216.51,216.46,5.77914234]
[1734503075282,2.3096,216.48,216.46,5.77914234]
[1734503075481,8.15914234,216.51,216.44,5.77914234]
[1734503076772,5.77914234,216.49,216.41,2.3102]
[1734503076973,5.77914234,216.49,216.39,5.68470674]
[1734503077179,5.77914234,216.49,216.4,5.77914234]
[1734503077377,2.31,216.44,216.4,8.08944234]
[1734503077573,2.38,216.46,216.4,8.08944234]
[1734503078181,2.3101,216.43,216.4,8.08944234]
[1734503078486,2.3101,216.43,216.4,5.77914234]
[1734503079187,2.3101,216.43,216.42,5.77914234]
[1734503079485,2.31,216.44,216.42,5.77914234]
[1734503079878,2.38,216.46,216.42,5.77914234]
[1734503080078,2.3098,216.45,216.42,5.77914234]
[1734503082891,8.15914234,216.48,216.4,2.3103]
[1734503083089,8.15914234,216.48,216.41,5.77914234]
[1734503084592,2.3099,216.45,216.41,8.08944234]
[1734503086393,2.31,216.44,216.41,5.77914234]
[1734503088193,2.38,216.48,216.41,5.77914234]
[1734503088392,2.38,216.48,216.43,5.77914234]
[1734503090095,10.42394234,216.5,216.43,5.77914234]
[1734503090096,2.38,216.49,216.43,5.77914234]
[1734503090599,5.77914234,216.48,216.41,5.77914234]
[1734503091698,5.77914234,216.48,216.39,11.46384908]
[1734503092399,2.31,216.44,216.41,2.3103]
[1734503092793,2.31,216.44,216.39,11.46384908]
[1734503093400,5.77914234,216.46,216.31,63.32647829]
[1734503093695,5.77914234,216.42,216.34,5.77914234]
[1734503093894,2.38,216.41,216.34,5.77914234]
[1734503094395,2.3106,216.38,216.34,2.311]
[1734503094603,5.77914234,216.4,216.33,5.77914234]
[1734503095502,2.3108,216.37,216.33,5.77914234]
[1734503095801,5.77914234,216.4,216.33,5.77914234]
[1734503098101,2.3109,216.36,216.33,5.77914234]
[1734503098301,5.77914234,216.4,216.33,5.77914234]
[1734503098699,2.3112,216.33,216.29,2.3115]
[1734503098903,2.3112,216.33,216.29,8.09064234]